lending/lending_fUSD_20250122
["ID","MTS","AMOUNT","RATE_DAILY","PERIOD"]
[349951746,1737533451465,-500.0,0.00019722,2]
[349951747,1737533451475,-897.38,0.00019722,2]
[349951748,1737533451485,-4666.52,0.00019722,2]
[349951749,1737533451496,-728.63,0.00019722,2]
[349951750,1737533451505,-1057.95,0.00019722,2]
[349951751,1737533451515,-549.12,0.00019722,2]
[349951752,1737533451524,-500.0,0.00019722,2]
[349951753,1737533451533,-500.0,0.00019722,2]
[349951754,1737533451542,-844.4,0.00019722,2]
[349951755,1737533451552,-1275.08,0.00019722,2]
[349951756,1737533451562,-500.0,0.00019722,2]
[349951757,1737533451572,-2792.66,0.00019722,2]
[349951758,1737533451581,-500.0,0.00019722,2]
[349951759,1737533451590,-3455.34,0.00019722,2]
[349951760,1737533451601,-500.0,0.00019722,2]
[349951761,1737533451610,-500.0,0.00019722,2]
[349951762,1737533451620,-768.41,0.00019722,2]
[349951763,1737533451629,-597.95,0.00019722,2]
[349951764,1737533451640,-1159.49,0.00019722,2]
[349951765,1737533451648,-1378.34,0.00019722,2]
[349951766,1737533451657,-3002.88,0.00019722,2]
[349951767,1737533451666,-500.0,0.00019722,2]
[349951768,1737533451675,-1925.85,0.00019722,2]
[349951769,1737533451684,-500.0,0.00019722,2]
[349951770,1737533451693,-863.51,0.00019722,2]
[349951771,1737533451701,-500.0,0.00019722,2]
[349951772,1737533451710,-1838.04,0.00019722,2]
[349951773,1737533451719,-500.0,0.00019722,2]
[349951774,1737533451728,-607.09,0.00019722,2]
[349951775,1737533451737,-1204.93,0.00019722,2]
[349951776,1737533451746,-500.0,0.00019722,2]
[349951777,1737533451754,-507.05,0.00019722,2]
[349951778,1737533451763,-500.0,0.00019722,2]
[349951779,1737533451772,-688.23,0.00019722,2]
[349951780,1737533451781,-2803.97,0.00019722,2]
[349951781,1737533451789,-500.0,0.00019722,2]
[349951782,1737533451798,-2690.12,0.00019722,2]
[349951783,1737533451807,-1000.0,0.00019722,2]
[349951784,1737533451816,-690.26,0.00019722,2]
[349951785,1737533451824,-500.0,0.00019722,2]
[349951786,1737533451834,-1368.88,0.00019722,2]
[349951787,1737533451843,-811.67,0.00019722,2]
[349951788,1737533451852,-834.87,0.00019722,2]
[349951789,1737533451861,-500.0,0.00019722,2]
[349951790,1737533451870,-500.0,0.00019722,2]
[349951791,1737533451879,-500.0,0.00019722,2]
[349951792,1737533451890,-500.0,0.00019722,2]
[349951793,1737533451900,-500.0,0.00019722,2]
[349951794,1737533451909,-945.75,0.00019722,2]
[349951795,1737533451919,-500.0,0.00019722,2]
[349951796,1737533451929,-2752.94,0.00019722,2]
[349951797,1737533451938,-500.0,0.00019722,2]
[349951798,1737533451947,-500.0,0.00019722,2]
[349951799,1737533451963,-500.0,0.00019723,2]
[349951800,1737533451979,-500.0,0.00019723,2]
[349951801,1737533451988,-500.0,0.00019723,2]
[349951802,1737533451998,-500.0,0.00019723,2]
[349951803,1737533452008,-594.31,0.00019723,2]
[349951804,1737533452018,-500.0,0.00019723,2]
[349951805,1737533452027,-500.0,0.00019723,2]
[349951806,1737533452036,-500.0,0.00019723,2]
[349951807,1737533452046,-500.0,0.00019723,2]
[349951808,1737533452055,-500.0,0.00019723,2]
[349951809,1737533452065,-500.0,0.00019723,2]
[349951810,1737533452074,-573.33202155,0.00019723,2]
[349951811,1737533452083,-633.49,0.00019723,2]
[349951812,1737533452093,-507.9647397,0.00019723,2]
[349951813,1737533452102,-500.0,0.00019723,2]
[349951814,1737533452112,-500.0,0.00019723,2]
[349951815,1737533452122,-500.0,0.00019723,2]
[349951816,1737533452135,-500.0,0.00019723,2]
[349951817,1737533452144,-300.0,0.00019723,2]
[349951818,1737533452153,-500.0,0.00019723,2]
[349951819,1737533452163,-651.93,0.00019723,2]
[349951820,1737533452173,-500.0,0.00019723,2]
[349951821,1737533452183,-500.0,0.00019723,2]
[349951822,1737533452193,-500.0,0.00019723,2]
[349951823,1737533452202,-500.0,0.00019723,2]
[349951824,1737533452212,-500.0,0.00019723,2]
[349951825,1737533452222,-500.0,0.00019723,2]
[349951826,1737533452232,-500.0,0.00019723,2]
[349951827,1737533452241,-500.0,0.00019723,2]
[349951828,1737533452252,-510.7,0.00019723,2]
[349951829,1737533452262,-500.0,0.00019723,2]
[349951830,1737533452271,-500.0,0.00019723,2]
[349951831,1737533452281,-500.0,0.00019723,2]
[349951832,1737533452290,-333.19629098,0.00019723,2]
[349951833,1737533452300,-505.51609333,0.00019723,2]
[349951834,1737533452309,-500.0,0.00019723,2]
[349951835,1737533452319,-968.26,0.00019723,2]
[349951836,1737533452328,-500.0,0.00019723,2]
[349951837,1737533452338,-500.0,0.00019723,2]
[349951838,1737533452347,-500.0,0.00019723,2]
[349951839,1737533452357,-500.0,0.00019723,2]
[349951840,1737533452367,-279.16344139,0.00019723,2]
[349951841,1737533452376,-506.18,0.00019723,2]
[349951842,1737533452388,-500.0,0.00019723,2]
[349951843,1737533452399,-500.0,0.00019723,2]
[349951844,1737533452408,-500.0,0.00019723,2]
[349951845,1737533452419,-500.0,0.00019723,2]
[349951846,1737533452429,-500.0,0.00019723,2]
[349951847,1737533452440,-500.0,0.00019723,2]
[349951848,1737533452450,-500.0,0.00019723,2]
[349951849,1737533452471,-500.0,0.00019723,2]
[349951850,1737533452498,-500.0,0.00019723,2]
[349951851,1737533452521,-500.0,0.00019723,2]
[349951852,1737533452545,-500.0,0.00019723,2]
[349951853,1737533452576,-500.0,0.00019723,2]
[349951854,1737533452605,-500.0,0.00019723,2]
[349951855,1737533452635,-904.23,0.00019723,2]
[349951856,1737533452663,-500.0,0.00019723,2]
[349951857,1737533452673,-500.0,0.00019723,2]
[349951858,1737533452683,-500.0,0.00019723,2]
[349951859,1737533452694,-500.0,0.00019723,2]
[349951860,1737533452704,-500.0,0.00019723,2]
[349951861,1737533452714,-500.0,0.00019723,2]
[349951862,1737533452724,-1214.06,0.00019723,2]
[349951863,1737533452734,-500.0,0.00019723,2]
[349951864,1737533452744,-589.1,0.00019723,2]
[349951865,1737533452753,-500.0,0.00019723,2]
[349951866,1737533452763,-500.0,0.00019723,2]
[349951867,1737533452773,-753.46,0.00019723,2]
[349951868,1737533452783,-500.0,0.00019723,2]
[349951869,1737533452793,-669.35,0.00019723,2]
[349951870,1737533452802,-500.0,0.00019723,2]
[349951871,1737533452812,-536.01529542,0.00019723,2]
[349951872,1737533452821,-539.94308778,0.00019723,2]
[349951873,1737533452831,-500.0,0.00019723,2]
[349951874,1737533452841,-500.0,0.00019723,2]
[349951875,1737533452850,-500.0,0.00019723,2]
[349951876,1737533452859,-500.0,0.00019723,2]
[349951877,1737533452868,-500.0,0.00019723,2]
[349951878,1737533452878,-1380.55,0.00019723,2]
[349951879,1737533452888,-500.0,0.00019723,2]
[349951880,1737533452897,-865.05,0.00019723,2]
[349951881,1737533452907,-500.0,0.00019723,2]
[349951882,1737533452916,-699.54,0.00019723,2]
[349951883,1737533452926,-1176.41,0.00019723,2]
[349951884,1737533452935,-1015.61,0.00019723,2]
[349951885,1737533452945,-500.0,0.00019723,2]
[349951886,1737533452954,-500.0,0.00019723,2]
[349951887,1737533452964,-500.0,0.00019723,2]
[349951888,1737533452973,-500.0,0.00019723,2]
[349951889,1737533452983,-825.23,0.00019723,2]
[349951890,1737533452993,-500.0,0.00019723,2]
[349951891,1737533453003,-500.0,0.00019723,2]
[349951892,1737533453013,-500.0,0.00019723,2]
[349951893,1737533453022,-442.33150227,0.00019723,2]
[349951894,1737533453323,-57.66849773,0.00019723,2]
[349951895,1737533453333,-2292.26,0.00019723,2]
[349951896,1737533453343,-500.0,0.00019723,2]
[349951897,1737533453353,-2000.0,0.00019724,2]
[349951898,1737533453363,-200.0,0.00019724,2]
[349951899,1737533453373,-3000.0,0.00019724,2]
[349951900,1737533453382,-1031.68589099,0.00019726,14]
[349951901,1737533453393,-207.25287805,0.0001974,2]
[349951902,1737533453403,-1427.46,0.00019767,7]
[349951903,1737533453413,-1427.46,0.00019767,7]
[349951904,1737533453423,-530.72986123,0.00019767,7]
[349951905,1737533453899,-500.0,0.00019447,2]
[349951906,1737533453913,-40.441375,0.00019447,2]
[349951907,1737533453925,-394.72,0.00019447,2]
[349951908,1737533453938,-64.838625,0.00019447,2]
[349951909,1737533453948,-500.0,0.00019721,2]
[349951910,1737533453958,-288.211375,0.00019767,7]
[349951911,1737533453971,-608.51876377,0.00019767,7]
[349951912,1737533453981,-607.58123623,0.00019767,7]
[349951913,1737533454002,-434.760005,0.00019767,7]
[349951914,1737533454023,-385.11875877,0.00019767,7]
[349951915,1737533454033,-166.06885655,0.00019773,2]
[349951916,1737533454044,-500.0,0.00019773,2]
[349951917,1737533454054,-175.59,0.00019794,2]
[349951918,1737533454064,-1911.64320595,0.000198,2]
[349951919,1737533454074,-1814.81306311,0.00019865,2]
[349951920,1737533454086,-1269.208833,0.00019865,2]
[349951921,1737533481637,-164.97,0.0001864,2]
[349951922,1737533492405,157.78,0.00010137,2]
[349951926,1737533589008,-170.16,0.00019027,2]
[349951927,1737533589034,-2412.1948,0.00019348,2]
[349951928,1737533589057,-1762.1417,0.00019348,2]
[349951929,1737533593326,192.87456793,0.00019248,2]
[349951930,1737533601041,3139.87893207,0.00019349,2]
[349951931,1737534246832,256.6508741,0.00024,120]
[349951932,1737534270120,1083.78100021,0.00020313,120]
[349951933,1737534270878,150.0,0.00023995,120]
[349951934,1737534277260,150.0,0.00024,120]
[349951935,1737534277553,150.0,0.00024,120]
[349951936,1737534277848,200.0,0.00024,120]
[349951937,1737534303271,1093.3859105,0.00024,120]
[349951938,1737534330758,150.0,0.00023169,120]
[349951943,1737534361738,168.5249871,0.0001,2]
[349951946,1737534390751,150.0,0.00022536,120]
[349951947,1737534428625,2282.36835419,0.00021,120]
[349951948,1737534429303,1819.63762959,0.00023,120]
[349951950,1737534450784,150.0,0.00022832,120]
[349951951,1737534465259,251.26826788,0.0002,120]
[349951952,1737534468054,204.84701256,0.0002,120]
[349951953,1737534479668,7548.09092819,0.0001,2]
[349951954,1737534479704,3226.26,0.0001,2]
[349951955,1737534479739,30921.22001589,0.0001,2]
[349951957,1737534511309,150.0,0.00021986,120]
[349951960,1737534519729,258.64538604,0.00022,120]
[349951961,1737534519839,202.0,0.0002,120]
[349951965,1737534522394,800.0,0.00021,120]
[349951967,1737534522878,195.78,0.0002,120]
[349951968,1737534522979,419.98423155,0.00022,120]
[349951982,1737534632091,-502.05,0.00016877,2]
[349951983,1737534632101,-800.35,0.00018619,2]
[349951984,1737534632111,-1000.0,0.0001864,2]
[349951985,1737534632120,-166.63,0.00018688,2]
[349951986,1737534632130,-289.13,0.00018703,2]
[349951987,1737534632140,-3828.04,0.00018715,2]
[349951988,1737534632152,-173.72,0.0001872,2]
[349951989,1737534632162,-250.0,0.0001877,2]
[349951990,1737534632172,-163.05,0.00018861,2]
[349951991,1737534632182,-1585.96,0.000189,2]
[349951992,1737534632192,-12309.0,0.00018943,2]
[349951993,1737534632202,-502.05,0.00019141,2]
[349951994,1737534632212,-513.11558716,0.00019347,2]
[349951995,1737534632222,-2242.40864835,0.00019347,2]
[349951996,1737534632231,-1545.73220759,0.00019348,2]
[349951997,1737534632241,-900.325,0.00019349,2]
[349951998,1737534632251,-56119.81231021,0.000194,2]
[349951999,1737534632261,-163.28,0.00019437,2]
[349952000,1737534632271,-500.0,0.00019446,2]
[349952001,1737534632282,-2798.83,0.00019446,2]
[349952002,1737534632292,-952.33,0.00019446,2]
[349952003,1737534632302,-679.69,0.00019446,2]
[349952004,1737534632312,-1367.21,0.00019446,2]
[349952005,1737534632322,-579.19,0.00019446,2]
[349952006,1737534632331,-1523.71,0.00019446,2]
[349952007,1737534632341,-1111.48,0.00019446,2]
[349952008,1737534632351,-500.0,0.00019446,2]
[349952009,1737534632360,-969.23,0.00019446,2]
[349952010,1737534632370,-1176.75,0.00019446,2]
[349952011,1737534632380,-2321.67,0.00019446,2]
[349952012,1737534632389,-651.97,0.00019446,2]
[349952013,1737534632399,-1287.3,0.00019446,2]
[349952014,1737534632410,-500.0,0.00019446,2]
[349952015,1737534632420,-2276.36,0.00019446,2]
[349952016,1737534632429,-647.81,0.00019446,2]
[349952017,1737534632439,-500.0,0.00019446,2]
[349952018,1737534632448,-894.7,0.00019446,2]
[349952019,1737534632458,-934.57,0.00019446,2]
[349952020,1737534632467,-500.0,0.00019446,2]
[349952021,1737534632478,-1402.54624668,0.00019446,2]
[349952022,1737534632992,-172.83375332,0.00019446,2]
[349952023,1737534633002,-3008.08,0.00019446,2]
[349952024,1737534633012,-500.0,0.00019446,2]
[349952025,1737534633022,-500.0,0.00019446,2]
[349952026,1737534633032,-713.84,0.00019446,2]
[349952027,1737534633042,-500.0,0.00019446,2]
[349952028,1737534633052,-243.69313168,0.00019446,2]
[349952029,1737534633064,-453.16686832,0.00019446,2]
[349952030,1737534633074,-500.0,0.00019446,2]
[349952031,1737534633083,-96.08133168,0.00019446,2]
[349952032,1737534633094,-518.86866832,0.00019446,2]
[349952033,1737534633103,-406.86646,0.00019446,2]
[349952034,1737534633112,-2476.15,0.00019446,2]
[349952035,1737534633122,-515.75,0.00019446,2]
[349952036,1737534633131,-500.0,0.00019446,2]
[349952037,1737534633141,-172.04766848,0.00019446,2]
[349952038,1737534633150,-972.57,0.00019447,2]
[349952039,1737534633160,-563.94,0.00019447,2]
[349952040,1737534633169,-514.00252617,0.00019447,2]
[349952041,1737534633178,-510.62070916,0.00019447,2]
[349952042,1737534633188,-500.0,0.00019447,2]
[349952043,1737534633197,-775.02,0.00019447,2]
[349952044,1737534633207,-500.0,0.00019447,2]
[349952045,1737534633217,-947.67,0.00019447,2]
[349952046,1737534633226,-1037.53,0.00019447,2]
[349952047,1737534633236,-500.0,0.00019447,2]
[349952048,1737534633245,-500.0,0.00019447,2]
[349952049,1737534633255,-500.0,0.00019447,2]
[349952050,1737534633266,-700.29,0.00019447,2]
[349952051,1737534633275,-636.14,0.00019447,2]
[349952052,1737534633284,-576.43,0.00019447,2]
[349952053,1737534633293,-500.0,0.00019447,2]
[349952054,1737534633302,-500.0,0.00019447,2]
[349952055,1737534633311,-500.0,0.00019447,2]
[349952056,1737534633321,-500.0,0.00019447,2]
[349952057,1737534633331,-500.0,0.00019447,2]
[349952058,1737534633340,-564.75,0.00019447,2]
[349952059,1737534633350,-500.0,0.00019447,2]
[349952060,1737534633359,-500.0,0.00019447,2]
[349952061,1737534633369,-500.0,0.00019447,2]
[349952062,1737534633378,-500.0,0.00019447,2]
[349952063,1737534633388,-500.0,0.00019447,2]
[349952064,1737534633397,-500.0,0.00019447,2]
[349952065,1737534633408,-550.57,0.00019447,2]
[349952066,1737534633418,-991.83,0.00019447,2]
[349952067,1737534633428,-1008.4,0.00019447,2]
[349952068,1737534633437,-500.0,0.00019447,2]
[349952069,1737534633447,-500.0,0.00019447,2]
[349952070,1737534633457,-619.56248171,0.00019447,2]
[349952071,1737534633468,-500.0,0.00019447,2]
[349952072,1737534633477,-500.0,0.00019447,2]
[349952073,1737534633487,-500.0,0.00019447,2]
[349952075,1737534633496,-500.0,0.00019447,2]
[349952077,1737534633505,-500.0,0.00019447,2]
[349952079,1737534633518,-500.0,0.00019447,2]
[349952081,1737534633528,-694.5,0.00019447,2]
[349952083,1737534633537,-500.0,0.00019447,2]
[349952084,1737534633547,-1202.02,0.00019447,2]
[349952086,1737534633557,-1070.48,0.00019447,2]
[349952088,1737534633567,-932.56,0.00019447,2]
[349952090,1737534633576,-500.0,0.00019447,2]
[349952092,1737534633586,-560.85,0.00019447,2]
[349952094,1737534633596,-706.83,0.00019447,2]
[349952096,1737534633605,-500.0,0.00019447,2]
[349952098,1737534633615,-1361.57,0.00019447,2]
[349952099,1737534633624,-644.06,0.00019447,2]
[349952101,1737534633633,-624.83,0.00019447,2]
[349952102,1737534633643,-796.67,0.00019447,2]
[349952103,1737534633653,-500.0,0.00019447,2]
[349952104,1737534633662,-1438.162394,0.00019447,2]
[349952105,1737534633672,-500.0,0.00019447,2]
[349952106,1737534633681,-500.0,0.00019447,2]
[349952107,1737534633690,-1377.23,0.00019447,2]
[349952108,1737534633699,-1229.49,0.00019447,2]
[349952109,1737534633709,-156.363218,0.00019447,2]
[349952110,1737534633718,-880.9,0.00019447,2]
[349952111,1737534633728,-500.0,0.00019447,2]
[349952112,1737534633737,-160.561758,0.00019447,2]
[349952113,1737534633746,-500.0,0.00019447,2]
[349952114,1737534633757,-500.0,0.00019447,2]
[349952115,1737534633766,-1013.44,0.00019447,2]
[349952116,1737534633775,-950.86,0.00019447,2]
[349952117,1737534633785,-500.0,0.00019447,2]
[349952118,1737534633795,-677.67,0.00019447,2]
[349952119,1737534633804,-948.099067,0.00019447,2]
[349952120,1737534633813,-500.0,0.00019447,2]
[349952121,1737534633823,-1398.08,0.00019447,2]
[349952122,1737534633833,-916.72,0.00019447,2]
[349952123,1737534633843,-500.0,0.00019447,2]
[349952124,1737534633852,-1072.95,0.00019447,2]
[349952125,1737534633861,-500.0,0.00019447,2]
[349952126,1737534633871,-500.0,0.00019447,2]
[349952127,1737534633881,-500.0,0.00019447,2]
[349952128,1737534633890,-500.0,0.00019447,2]
[349952129,1737534633900,-500.0,0.00019447,2]
[349952130,1737534633911,-1526.48,0.00019447,2]
[349952131,1737534633922,-698.84,0.00019447,2]
[349952132,1737534633931,-500.0,0.00019447,2]
[349952133,1737534633941,-500.0,0.00019447,2]
[349952134,1737534633950,-615.72,0.00019447,2]
[349952135,1737534633960,-500.0,0.00019447,2]
[349952136,1737534633969,-500.0,0.00019447,2]
[349952137,1737534633979,-500.0,0.00019447,2]
[349952138,1737534633989,-1074.97,0.00019447,2]
[349952139,1737534633998,-500.0,0.00019447,2]
[349952140,1737534634008,-500.0,0.00019447,2]
[349952141,1737534634017,-500.0,0.00019447,2]
[349952142,1737534634027,-500.0,0.00019447,2]
[349952143,1737534634037,-500.0,0.00019447,2]
[349952144,1737534634046,-603.53,0.00019447,2]
[349952145,1737534634056,-500.0,0.00019447,2]
[349952146,1737534634065,-500.0,0.00019447,2]
[349952147,1737534634074,-1670.42,0.00019447,2]
[349952148,1737534634084,-500.0,0.00019447,2]
[349952149,1737534634093,-500.0,0.00019447,2]
[349952150,1737534634103,-500.0,0.00019447,2]
[349952151,1737534634113,-500.0,0.00019447,2]
[349952152,1737534634123,-500.0,0.00019447,2]
[349952153,1737534634133,-1037.24,0.00019447,2]
[349952154,1737534634143,-1018.24,0.00019447,2]
[349952155,1737534634153,-500.0,0.00019447,2]
[349952156,1737534634163,-500.0,0.00019447,2]
[349952157,1737534634173,-500.0,0.00019447,2]
[349952158,1737534634182,-500.0,0.00019447,2]
[349952159,1737534634192,-500.0,0.00019447,2]
[349952160,1737534634201,-895.81,0.00019447,2]
[349952161,1737534634212,-1128.14,0.00019447,2]
[349952162,1737534634222,-1063.29,0.00019447,2]
[349952163,1737534634232,-500.0,0.00019447,2]
[349952164,1737534634241,-500.0,0.00019447,2]
[349952165,1737534634251,-849.78328977,0.00019447,2]
[349952166,1737534634699,-306.23102335,0.00019447,2]
[349952167,1737534634710,-73.88568688,0.00019447,2]
[349952168,1737534634720,-500.0,0.00019447,2]
[349952169,1737534634730,-910.85,0.00019447,2]
[349952170,1737534634742,-713.75,0.00019447,2]
[349952171,1737534634752,-151.62602614,0.00019447,2]
[349952172,1737534634761,-976.93,0.00019447,2]
[349952173,1737534634770,-500.0,0.00019447,2]
[349952174,1737534634780,-500.0,0.00019447,2]
[349952175,1737534634790,-500.0,0.00019447,2]
[349952176,1737534634799,-1056.04,0.00019447,2]
[349952177,1737534634808,-500.0,0.00019447,2]
[349952178,1737534634817,-500.0,0.00019447,2]
[349952179,1737534634827,-880.91,0.00019447,2]
[349952180,1737534634836,-500.0,0.00019447,2]
[349952181,1737534634846,-500.0,0.00019447,2]
[349952182,1737534634855,-542.64,0.00019447,2]
[349952183,1737534634865,-620.06,0.00019447,2]
[349952184,1737534634874,-1188.76,0.00019447,2]
[349952185,1737534634884,-1345.98,0.00019447,2]
[349952186,1737534634894,-1985.59,0.00019447,2]
[349952187,1737534634905,-940.54,0.00019447,2]
[349952188,1737534634914,-1177.26,0.00019447,2]
[349952189,1737534634923,-1602.21,0.00019447,2]
[349952190,1737534634932,-500.0,0.00019447,2]
[349952191,1737534634941,-500.0,0.00019447,2]
[349952192,1737534634951,-650.05,0.00019447,2]
[349952193,1737534634960,-2865.39,0.00019447,2]
[349952194,1737534634970,-500.0,0.00019447,2]
[349952195,1737534634979,-1460.66,0.00019447,2]
[349952196,1737534634990,-903.86,0.00019447,2]
[349952197,1737534635000,-500.0,0.00019447,2]
[349952198,1737534635010,-910.11,0.00019447,2]
[349952199,1737534635021,-1447.14,0.00019447,2]
[349952200,1737534635031,-2028.26,0.00019447,2]
[349952201,1737534635044,-2040.82,0.00019447,2]
[349952202,1737534635054,-710.66,0.00019447,2]
[349952203,1737534635065,-1247.1,0.00019447,2]
[349952204,1737534635075,-500.0,0.00019447,2]
[349952205,1737534635084,-1194.86,0.00019447,2]
[349952206,1737534635093,-999.9,0.00019447,2]
[349952207,1737534635102,-500.0,0.00019447,2]
[349952208,1737534635111,-1111.37,0.00019447,2]
[349952209,1737534635120,-377.35309206,0.00019447,2]
[349952210,1737534635132,-122.64690794,0.00019447,2]
[349952211,1737534635142,-2552.95,0.00019447,2]
[349952212,1737534635151,-500.0,0.00019447,2]
[349952213,1737534635161,-500.0,0.00019447,2]
[349952214,1737534635170,-1490.37,0.00019447,2]
[349952215,1737534635180,-1149.55,0.00019447,2]
[349952216,1737534635202,-500.0,0.00019447,2]
[349952217,1737534635223,-500.0,0.00019447,2]
[349952218,1737534635237,-5785.18,0.00019447,2]
[349952219,1737534635248,-634.52,0.00019447,2]
[349952220,1737534635257,-956.77,0.00019447,2]
[349952221,1737534635266,-1268.92,0.00019447,2]
[349952222,1737534635276,-2423.9,0.00019447,2]
[349952223,1737534635285,-500.0,0.00019447,2]
[349952224,1737534635295,-2326.11,0.00019447,2]
[349952225,1737534635304,-775.29,0.00019447,2]
[349952226,1737534635313,-966.49,0.00019447,2]
[349952227,1737534635323,-500.0,0.00019447,2]
[349952228,1737534635332,-500.0,0.00019447,2]
[349952229,1737534635342,-500.0,0.00019447,2]
[349952230,1737534635352,-3638.14,0.00019447,2]
[349952231,1737534635361,-237.39701415,0.00019447,2]
[349952232,1737534635370,-160.412754,0.00019447,2]
[349952233,1737534635380,-614.54,0.00019447,2]
[349952234,1737534635389,-657.7,0.00019447,2]
[349952235,1737534635399,-3328.69,0.00019447,2]
[349952236,1737534635410,-1038.84332391,0.00019447,2]
[349952237,1737534635426,-4036.99667609,0.00019447,2]
[349952238,1737534635436,-500.0,0.00019447,2]
[349952239,1737534635445,-602.00332391,0.00019447,2]
[349952240,1737534635542,-500.0,0.00019446,2]
[349952241,1737534635554,-996.90667609,0.00019447,2]
[349952242,1737534635564,-1452.67,0.00019447,2]
[349952243,1737534635573,-500.0,0.00019447,2]
[349952244,1737534635583,-914.4,0.00019447,2]
[349952245,1737534635592,-2138.98,0.00019447,2]
[349952246,1737534635602,-500.0,0.00019447,2]
[349952247,1737534635611,-500.0,0.00019447,2]
[349952248,1737534635621,-506.53,0.00019447,2]
[349952249,1737534635630,-1155.63,0.00019447,2]
[349952250,1737534635639,-2857.9,0.00019447,2]
[349952251,1737534635648,-500.0,0.00019447,2]
[349952252,1737534635659,-1293.83,0.00019447,2]
[349952253,1737534635668,-3678.54,0.00019447,2]
[349952254,1737534635677,-500.0,0.00019447,2]
[349952255,1737534635686,-500.0,0.00019447,2]
[349952256,1737534635695,-3091.61,0.00019447,2]
[349952257,1737534635705,-500.0,0.00019447,2]
[349952258,1737534635715,-547.79,0.00019447,2]
[349952259,1737534635724,-3070.73,0.00019447,2]
[349952260,1737534635733,-500.0,0.00019447,2]
[349952261,1737534635744,-957.09,0.00019447,2]
[349952262,1737534635753,-853.35,0.00019447,2]
[349952263,1737534635763,-1475.16,0.00019447,2]
[349952264,1737534635772,-676.64,0.00019447,2]
[349952265,1737534635782,-1214.2,0.00019447,2]
[349952266,1737534635791,-693.59,0.00019447,2]
[349952267,1737534635801,-1500.17,0.00019447,2]
[349952268,1737534635811,-500.0,0.00019447,2]
[349952269,1737534635820,-4612.68,0.00019447,2]
[349952270,1737534635830,-500.0,0.00019447,2]
[349952271,1737534635839,-500.0,0.00019447,2]
[349952272,1737534635849,-695.39,0.00019447,2]
[349952273,1737534635858,-999.84,0.00019447,2]
[349952274,1737534635867,-500.0,0.00019447,2]
[349952275,1737534635877,-500.0,0.00019447,2]
[349952276,1737534635886,-2191.68,0.00019447,2]
[349952277,1737534635895,-500.0,0.00019447,2]
[349952278,1737534635906,-533.07,0.00019447,2]
[349952279,1737534635916,-1250.87,0.00019447,2]
[349952280,1737534635925,-500.0,0.00019447,2]
[349952281,1737534635935,-500.0,0.00019447,2]
[349952282,1737534635944,-163.513595,0.00019447,2]
[349952283,1737534635955,-500.0,0.00019447,2]
[349952284,1737534635965,-911.61,0.00019447,2]
[349952285,1737534635974,-500.0,0.00019447,2]
[349952286,1737534635984,-500.0,0.00019447,2]
[349952287,1737534635993,-500.0,0.00019447,2]
[349952288,1737534636003,-1011.73,0.00019447,2]